[Event "FIDE Open World Rapid 2024"]
[Site "New York"]
[Date "2024.12.27"]
[Round "7.30"]
[White "Makarian, Rudik"]
[Black "Niemann, Hans Moke"]
[Result "1-0"]
[ECO "E11"]
[WhiteElo "2547"]
[BlackElo "2734"]
[Annotator "TA"]
[PlyCount "61"]
[EventDate "2024.12.14"]
[EventType "swiss"]
[EventCountry "USA"]
[SourceTitle "playchess.com"]
[Source "ChessBase"]
[SourceQuality "1"]
[TimeControl "900+10"]

{[%evp 11,61,2,0,0,8,-7,0,0,0,-18,2,6,0,0,13,13,6,6,12,7,7,8,10,11,4,6,69,77,89,90,77,63,86,87,91,80,85,80,111,111,135,133,119,106,183,143,201,201,879,783,869,859]} 1. d4 {[%emt 0:01:12]} Nf6 {[%emt 0:00:02]} 2. c4 {[%emt 0:00:02]} e6 {[%emt 0:00:02]} 3. Nf3 {[%emt 0:00:01]} d5 {[%emt 0:00:06]} 4. g3 {[%emt 0:00:03]} Bb4+ {[%emt 0:00:03]} 5. Bd2 {[%emt 0:00:02]} Be7 {[%emt 0:00:02]} 6. Bg2 {[%emt 0:00:02]} O-O {[%emt 0:00:04]} 7. Qc2 {[%emt 0:00:02]} Nbd7 {[%emt 0:00:17]} 8. Bf4 {[%emt 0:00:09]} c6 {[%emt 0:00:09]} 9. Nbd2 {[%emt 0:00:03]} Nh5 {[%emt 0:00:29]} 10. h4 {[%emt 0:00:03]} h6 {[%emt 0:02:00] Against Bg5} 11. e3 {[%emt 0:00:06][%cal Be2e3,Be3f4][%mdl 32]} b6 {[%emt 0:00:24]} 12. cxd5 {[%emt 0:00:06]} Nxf4 {[%emt 0:00:24]} 13. exf4 {[%emt 0:00:02]} cxd5 {[%emt 0:00:09]} 14. O-O {[%emt 0:00:03]} Bb7 {[%emt 0:00:17]} 15. Rfc1 {[%emt 0:00:03]} Rc8 {[%emt 0:00:10]} 16. Qd1 {[%emt 0:00:44]} Nf6 {[%emt 0:00:04]} 17. Bf1 {[%emt 0:00:17]} Ne4 {[%emt 0:00:05]} 18. Bd3 {[%emt 0:00:04]} f5 {[%emt 0:06:08]} (18... Bd6 $11) 19. Ne5 $14 {[%emt 0:00:43]} Bd6 {[%emt 0:00:28]} 20. Ndf3 {[%emt 0:00:10]} Kh7 {[%emt 0:00:10]} 21. Qe2 {[%emt 0:02:34]} Rc7 {[%emt 0:00:13]} 22. Kg2 {[%emt 0:01:24][%cal Of3g5]} Qc8 {[%emt 0:00:14]} 23. Rxc7 {[%emt 0:01:35]} Qxc7 {[%emt 0:00:31]} 24. Rh1 {[%emt 0:00:04][%cal Of3g5]} Kg8 {[%emt 0:00:06]} 25. Ng6 {[%emt 0:00:39] Excellent horsemanship.} Rc8 {[%emt 0:01:38] [#]} 26. Nfe5 $1 {[%emt 0:00:09]} Kh7 {[%emt 0:00:43]} 27. f3 {[%emt 0:00:56]} b5 {[%emt 0:00:02]} 28. Kh3 {[%emt 0:01:07]} (28. fxe4 dxe4 29. Bb1 (29. Bxb5 $2 {perishes.} e3+ 30. Nf3 Qc2 $19) 29... e3+ 30. Nf3 Kxg6 31. Qxe3 Kf7 $11) 28... Nf6 {[%emt 0:01:20] [#]} (28... Bxe5 $16 29. Nxe5 Nd6) 29. g4 $1 $18 {[%emt 0:00:16][%cal Bg3g4,Bg4f5][%mdl 32]} ({Don't take} 29. Bxb5 $6 Rb8 $16) 29... Rf8 $2 {[%emt 0:00:26]} (29... Re8 30. Rg1 (30. gxf5 exf5 31. Qd2 Bc8 $16) (30. Bxb5 fxg4+ 31. Nxg4 Nxg4 $16) 30... a6) 30. Nxf8+ {[%emt 0:00:12]} Bxf8 {[%emt 0:00:02]} 31. gxf5 {[%emt 0:00:08]} 1-0

[Event "FIDE Open World Rapid 2024"]
[Site "New York"]
[Date "2024.12.27"]
[Round "7.31"]
[White "Zemlyanskii, Ivan"]
[Black "Bluebaum, Matthias"]
[Result "0-1"]
[ECO "C02"]
[WhiteElo "2543"]
[BlackElo "2650"]
[Annotator "ChessBase"]
[PlyCount "102"]
[EventDate "2024.12.14"]
[EventType "swiss"]
[EventCountry "USA"]
[SourceTitle "playchess.com"]
[Source "ChessBase"]
[SourceQuality "1"]
[TimeControl "900+10"]

1. e4 {[%emt 0:00:04]} e6 {[%emt 0:00:14]} 2. d4 {[%emt 0:00:06]} d5 {[%emt 0:00:04]} 3. e5 {[%emt 0:00:02]} c5 {[%emt 0:00:01]} 4. c3 {[%emt 0:00:00]} Nc6 {[%emt 0:00:01]} 5. Nf3 {[%emt 0:00:02]} Nge7 {[%emt 0:00:01]} 6. Bd3 {[%emt 0:00:12]} cxd4 {[%emt 0:00:01]} 7. cxd4 {[%emt 0:00:02]} Nf5 {[%emt 0:00:01]} 8. Bxf5 {[%emt 0:00:04]} exf5 {[%emt 0:00:02]} 9. Nc3 {[%emt 0:00:01]} Be7 {[%emt 0:00:01]} 10. h4 {[%emt 0:01:58]} O-O {[%emt 0:00:02]} 11. Ne2 {[%emt 0:00:36]} f4 {[%emt 0:00:19]} 12. Nxf4 {[%emt 0:01:40]} Bg4 {[%emt 0:00:02]} 13. Be3 {[%emt 0:00:21]} Qa5+ {[%emt 0:00:18]} 14. Kf1 {[%emt 0:00:15]} Rad8 {[%emt 0:01:14]} 15. Qb3 {[%emt 0:02:12]} Qa6+ {[%emt 0:02:21]} 16. Qd3 {[%emt 0:00:31]} f6 {[%emt 0:00:07]} 17. Qxa6 {[%emt 0:01:06]} bxa6 {[%emt 0:00:01]} 18. Rc1 {[%emt 0:00:29]} fxe5 {[%emt 0:02:45]} 19. Nxe5 {[%emt 0:00:31]} Nxe5 {[%emt 0:00:01]} 20. dxe5 {[%emt 0:00:02]} d4 {[%emt 0:00:01]} 21. Bd2 {[%emt 0:00:04]} g5 {[%emt 0:00:39]} 22. f3 {[%emt 0:02:22]} Bd7 {[%emt 0:02:56]} 23. Nh5 {[%emt 0:01:25]} gxh4 {[%emt 0:00:07]} 24. Rc7 {[%emt 0:00:40]} Bb5+ {[%emt 0:01:15]} 25. Kf2 {[%emt 0:00:34]} Rd7 {[%emt 0:00:01]} 26. Rhc1 {[%emt 0:01:12]} Bd8 {[%emt 0:00:13]} 27. Rc8 {[%emt 0:00:31]} d3 {[%emt 0:01:24]} 28. Kg1 {[%emt 0:01:53]} Bb6+ {[%emt 0:01:21]} 29. Kh2 {[%emt 0:00:01]} Rxc8 {[%emt 0:00:00]} 30. Rxc8+ {[%emt 0:00:01]} Rd8 {[%emt 0:00:01]} 31. Rc1 {[%emt 0:00:43]} Kf7 {[%emt 0:01:06]} 32. Re1 {[%emt 0:00:25]} Kg6 {[%emt 0:00:58]} 33. Nf4+ {[%emt 0:00:22]} Kf5 {[%emt 0:00:00]} 34. Kh3 {[%emt 0:00:08]} Bf2 {[%emt 0:00:12]} 35. Re4 {[%emt 0:00:11]} Rd4 {[%emt 0:00:25]} 36. Rxd4 {[%emt 0:00:11]} Bxd4 {[%emt 0:00:01]} 37. Kxh4 {[%emt 0:00:02]} Bxb2 {[%emt 0:00:13]} 38. e6 {[%emt 0:00:12]} Bf6+ {[%emt 0:00:11]} 39. Kh3 {[%emt 0:00:05]} Be5 {[%emt 0:00:58]} 40. g4+ {[%emt 0:00:21]} Kf6 {[%emt 0:00:00]} 41. Kh4 {[%emt 0:00:11]} Bc4 {[%emt 0:00:39]} 42. a4 {[%emt 0:00:11]} a5 {[%emt 0:00:26]} 43. Kh5 {[%emt 0:00:06]} Bd6 {[%emt 0:00:01]} 44. Kh6 {[%emt 0:00:13]} Bb4 {[%emt 0:00:01]} 45. g5+ {[%emt 0:00:07]} Ke7 {[%emt 0:00:00]} 46. Nxd3 {[%emt 0:00:13]} Bxd3 {[%emt 0:00:08]} 47. Be3 {[%emt 0:00:00]} a6 {[%emt 0:00:15]} 48. f4 {[%emt 0:00:18]} Kxe6 {[%emt 0:00:02]} 49. Bb6 {[%emt 0:00:01]} Bd2 {[%emt 0:00:33]} 50. Bc7 {[%emt 0:00:05]} Bg6 {[%emt 0:00:01]} 51. Kg7 {[%emt 0:00:07]} Kf5 {[%emt 0:00:02]} 0-1

[Event "FIDE Open World Rapid 2024"]
[Site "New York"]
[Date "2024.12.27"]
[Round "7.31"]
[White "Lou, Yiping"]
[Black "Rosen, Eric"]
[Result "1/2-1/2"]
[ECO "D35"]
[WhiteElo "2459"]
[BlackElo "2377"]
[Annotator "ChessBase"]
[PlyCount "86"]
[EventDate "2024.12.14"]
[EventType "swiss"]
[EventCountry "USA"]
[SourceTitle "playchess.com"]
[Source "ChessBase"]
[SourceQuality "1"]
[TimeControl "900+10"]

1. c4 {[%emt 0:00:02]} e6 {[%emt 0:00:02]} 2. Nc3 {[%emt 0:00:03]} d5 {[%emt 0:00:01]} 3. d4 {[%emt 0:00:01]} Nf6 {[%emt 0:00:02]} 4. cxd5 {[%emt 0:00:02]} exd5 {[%emt 0:00:01]} 5. Bg5 {[%emt 0:00:04]} c6 {[%emt 0:00:05]} 6. e3 {[%emt 0:00:03]} Bd6 {[%emt 0:00:01]} 7. Bd3 {[%emt 0:00:08]} h6 {[%emt 0:00:01]} 8. Bh4 {[%emt 0:00:03]} O-O {[%emt 0:00:02]} 9. Nf3 {[%emt 0:00:05]} Be6 {[%emt 0:00:04]} 10. Ne5 {[%emt 0:00:19]} c5 {[%emt 0:00:01]} 11. O-O {[%emt 0:00:15]} Nc6 {[%emt 0:00:01]} 12. Nxc6 {[%emt 0:00:27]} bxc6 {[%emt 0:00:02]} 13. dxc5 {[%emt 0:00:02]} Bxc5 {[%emt 0:00:01]} 14. Rc1 {[%emt 0:00:17]} Rc8 {[%emt 0:00:20]} 15. Na4 {[%emt 0:00:42]} Be7 {[%emt 0:00:02]} 16. b3 {[%emt 0:01:35]} Nd7 {[%emt 0:01:07]} 17. Bg3 {[%emt 0:01:03]} Qa5 {[%emt 0:00:17]} 18. Qe2 {[%emt 0:00:05]} c5 {[%emt 0:02:09]} 19. Ba6 {[%emt 0:00:46]} Rcd8 {[%emt 0:01:16]} 20. Qb5 {[%emt 0:00:19]} Qxb5 {[%emt 0:02:57]} 21. Bxb5 {[%emt 0:00:02]} d4 {[%emt 0:00:01]} 22. exd4 {[%emt 0:00:56]} cxd4 {[%emt 0:01:17]} 23. Bc7 {[%emt 0:03:52]} Rc8 {[%emt 0:00:01]} 24. Ba6 {[%emt 0:00:01]} Rce8 {[%emt 0:00:10]} 25. Rfd1 {[%emt 0:00:59]} Ba3 {[%emt 0:00:54]} 26. Rc2 {[%emt 0:00:59]} Nf6 {[%emt 0:01:58]} 27. Rxd4 {[%emt 0:01:05]} Bf5 {[%emt 0:00:01]} 28. Re2 {[%emt 0:00:25]} Rxe2 {[%emt 0:01:28]} 29. Bxe2 {[%emt 0:00:02]} Rc8 {[%emt 0:00:02]} 30. Rd8+ {[%emt 0:00:24]} Rxd8 {[%emt 0:00:02]} 31. Bxd8 {[%emt 0:00:01]} Nd5 {[%emt 0:00:00]} 32. Bc4 {[%emt 0:00:54]} Nb4 {[%emt 0:00:28]} 33. Be7 {[%emt 0:00:07]} a5 {[%emt 0:01:52]} 34. Bd8 {[%emt 0:00:22]} Nc6 {[%emt 0:00:21]} 35. Bb6 {[%emt 0:00:03]} Bb4 {[%emt 0:00:15]} 36. Nb2 {[%emt 0:00:49]} Bb1 {[%emt 0:00:47]} 37. a4 {[%emt 0:00:18]} Ne5 {[%emt 0:00:01]} 38. Bd5 {[%emt 0:00:29]} Bc2 {[%emt 0:00:30]} 39. Bd4 {[%emt 0:01:22]} Nd7 {[%emt 0:00:01]} 40. Nc4 {[%emt 0:01:34]} Bxb3 {[%emt 0:00:23]} 41. Nb6 {[%emt 0:00:03]} Nc5 {[%emt 0:01:29]} 42. Bxc5 {[%emt 0:00:44]} Bxc5 {[%emt 0:00:02]} 43. Bxb3 {[%emt 0:00:01]} Bxb6 {[%emt 0:00:01]} 1/2-1/2

[Event "FIDE Open World Rapid 2024"]
[Site "New York"]
[Date "2024.12.27"]
[Round "7.32"]
[White "Akobian, Varuzhan"]
[Black "Tsaruk, Maksim"]
[Result "1-0"]
[ECO "A80"]
[WhiteElo "2564"]
[BlackElo "2424"]
[Annotator "ChessBase"]
[PlyCount "93"]
[EventDate "2024.12.14"]
[EventType "swiss"]
[EventCountry "USA"]
[SourceTitle "playchess.com"]
[Source "ChessBase"]
[SourceQuality "1"]
[TimeControl "900+10"]

1. d4 {[%emt 0:00:02]} f5 {[%emt 0:00:02]} 2. Nc3 {[%emt 0:00:04]} Nf6 {[%emt 0:00:02]} 3. Bg5 {[%emt 0:00:02]} d5 {[%emt 0:00:01]} 4. Bxf6 {[%emt 0:00:10]} exf6 {[%emt 0:00:02]} 5. e3 {[%emt 0:00:01]} Be6 {[%emt 0:00:04]} 6. Bd3 {[%emt 0:00:01]} Qd7 {[%emt 0:00:03]} 7. Nge2 {[%emt 0:00:03]} Nc6 {[%emt 0:00:07]} 8. a3 {[%emt 0:00:00]} h5 {[%emt 0:00:13]} 9. h4 {[%emt 0:01:12]} Ne7 {[%emt 0:00:33]} 10. b3 {[%emt 0:00:27]} g5 {[%emt 0:02:29]} 11. Na4 {[%emt 0:00:12]} Ng6 {[%emt 0:00:12]} 12. hxg5 {[%emt 0:00:17]} fxg5 {[%emt 0:00:01]} 13. Nc5 {[%emt 0:00:01]} Bxc5 {[%emt 0:00:02]} 14. dxc5 {[%emt 0:00:01]} Nh4 {[%emt 0:02:14]} 15. Rh2 {[%emt 0:00:43]} O-O-O {[%emt 0:00:52]} 16. Nd4 {[%emt 0:00:05]} f4 {[%emt 0:01:04]} 17. exf4 {[%emt 0:02:08]} Bg4 {[%emt 0:00:33]} 18. Qd2 {[%emt 0:00:02]} Qe7+ {[%emt 0:02:46]} 19. Kf1 {[%emt 0:00:07]} Qxc5 {[%emt 0:00:02]} 20. Qb4 {[%emt 0:00:07]} Qf8 {[%emt 0:01:33]} 21. Qxf8 {[%emt 0:00:12]} Rdxf8 {[%emt 0:00:06]} 22. fxg5 {[%emt 0:00:12]} Nf5 {[%emt 0:00:06]} 23. Bxf5+ {[%emt 0:06:47]} Bxf5 {[%emt 0:00:02]} 24. b4 {[%emt 0:00:09]} b6 {[%emt 0:03:06]} 25. b5 {[%emt 0:01:39]} Kd7 {[%emt 0:00:01]} 26. Re1 {[%emt 0:01:02]} Kd6 {[%emt 0:00:01]} 27. f3 {[%emt 0:00:45]} a6 {[%emt 0:01:54]} 28. a4 {[%emt 0:00:22]} axb5 {[%emt 0:00:02]} 29. axb5 {[%emt 0:00:01]} Kc5 {[%emt 0:01:09]} 30. Rh4 {[%emt 0:00:10]} Rhg8 {[%emt 0:00:02]} 31. Re7 {[%emt 0:02:08]} Kd6 {[%emt 0:00:32]} 32. Nxf5+ {[%emt 0:01:00]} Rxf5 {[%emt 0:00:01]} 33. Rh7 {[%emt 0:00:02]} Rfxg5 {[%emt 0:00:31]} 34. Rh2 {[%emt 0:00:01]} Re5 {[%emt 0:00:11]} 35. R2xh5 {[%emt 0:00:07]} Re3 {[%emt 0:00:09]} 36. R5h6+ {[%emt 0:00:11]} Kc5 {[%emt 0:00:01]} 37. Rxc7+ {[%emt 0:00:02]} Kxb5 {[%emt 0:00:00]} 38. Rb7 {[%emt 0:00:08]} Kc4 {[%emt 0:00:19]} 39. Rc6+ {[%emt 0:00:10]} Kd4 {[%emt 0:00:02]} 40. Rbxb6 {[%emt 0:00:03]} Re7 {[%emt 0:00:28]} 41. Rb4+ {[%emt 0:00:11]} Ke5 {[%emt 0:00:10]} 42. Kf2 {[%emt 0:00:06]} Reg7 {[%emt 0:00:02]} 43. g4 {[%emt 0:00:02]} Rf7 {[%emt 0:00:08]} 44. Kg3 {[%emt 0:00:05]} Rgf8 {[%emt 0:00:04]} 45. f4+ {[%emt 0:00:12]} Rxf4 {[%emt 0:00:01]} 46. Rxf4 {[%emt 0:00:01]} Rxf4 {[%emt 0:00:01]} 47. Re6+ {[%emt 0:00:01]} 1-0

[Event "FIDE Open World Rapid 2024"]
[Site "New York"]
[Date "2024.12.27"]
[Round "7.32"]
[White "Gagunashvili, Merab"]
[Black "George, Kevin"]
[Result "1/2-1/2"]
[ECO "E35"]
[WhiteElo "2541"]
[BlackElo "2270"]
[Annotator "ChessBase"]
[PlyCount "199"]
[EventDate "2024.12.14"]
[EventType "swiss"]
[EventCountry "USA"]
[SourceTitle "playchess.com"]
[Source "ChessBase"]
[SourceQuality "1"]
[TimeControl "900+10"]

1. d4 {[%emt 0:00:01]} Nf6 {[%emt 0:00:19]} 2. c4 {[%emt 0:00:01]} e6 {[%emt 0:00:02]} 3. Nc3 {[%emt 0:00:02]} Bb4 {[%emt 0:00:01]} 4. Qc2 {[%emt 0:00:00]} d5 {[%emt 0:00:03]} 5. cxd5 {[%emt 0:00:01]} exd5 {[%emt 0:00:04]} 6. Bg5 {[%emt 0:00:02]} h6 {[%emt 0:00:08]} 7. Bh4 {[%emt 0:00:01]} Nc6 {[%emt 0:00:05]} 8. e3 {[%emt 0:00:05]} g5 {[%emt 0:00:08]} 9. Bg3 {[%emt 0:00:01]} h5 {[%emt 0:00:02]} 10. Bb5 {[%emt 0:00:37]} h4 {[%emt 0:00:04]} 11. Be5 {[%emt 0:00:07]} O-O {[%emt 0:00:06]} 12. Bxf6 {[%emt 0:00:29]} Qxf6 {[%emt 0:00:03]} 13. h3 {[%emt 0:00:17]} Ne7 {[%emt 0:00:43]} 14. Nf3 {[%emt 0:00:47]} c6 {[%emt 0:00:30]} 15. Bd3 {[%emt 0:00:01]} Be6 {[%emt 0:00:25]} 16. a3 {[%emt 0:00:32]} Ba5 {[%emt 0:00:20]} 17. Qa4 {[%emt 0:03:04]} Bc7 {[%emt 0:02:02]} 18. O-O-O {[%emt 0:00:26]} a5 {[%emt 0:00:33]} 19. Qc2 {[%emt 0:00:12]} b5 {[%emt 0:01:29]} 20. Ne2 {[%emt 0:00:57]} Bd6 {[%emt 0:01:11]} 21. e4 {[%emt 0:00:27]} dxe4 {[%emt 0:02:38]} 22. Bxe4 {[%emt 0:00:01]} Nd5 {[%emt 0:00:11]} 23. Qd2 {[%emt 0:01:04]} Nf4 {[%emt 0:00:48]} 24. g3 {[%emt 0:00:08]} hxg3 {[%emt 0:01:02]} 25. fxg3 {[%emt 0:00:11]} Nxe2+ {[%emt 0:00:46]} 26. Qxe2 {[%emt 0:00:01]} Bxg3 {[%emt 0:01:14]} 27. Rdg1 {[%emt 0:00:48]} Bf4+ {[%emt 0:00:40]} 28. Kb1 {[%emt 0:00:01]} Rfe8 {[%emt 0:00:51]} 29. Nxg5 {[%emt 0:00:59]} Bxg5 {[%emt 0:00:29]} 30. Qh5 {[%emt 0:00:11]} Kf8 {[%emt 0:00:25]} 31. Qxg5 {[%emt 0:03:31]} Qxg5 {[%emt 0:00:09]} 32. Rxg5 {[%emt 0:00:00]} Ba2+ {[%emt 0:00:02]} 33. Kxa2 {[%emt 0:00:02]} Rxe4 {[%emt 0:00:01]} 34. d5 {[%emt 0:00:32]} cxd5 {[%emt 0:00:24]} 35. Rxd5 {[%emt 0:00:17]} Rb8 {[%emt 0:00:22]} 36. Rf1 {[%emt 0:00:13]} a4 {[%emt 0:00:30]} 37. Rd7 {[%emt 0:01:09]} Re7 {[%emt 0:00:01]} 38. Rd4 {[%emt 0:00:02]} Re3 {[%emt 0:00:51]} 39. h4 {[%emt 0:00:09]} Rc8 {[%emt 0:00:45]} 40. Rd7 {[%emt 0:01:25]} Re7 {[%emt 0:00:06]} 41. Rd5 {[%emt 0:00:26]} Rb7 {[%emt 0:00:22]} 42. Rf4 {[%emt 0:00:00]} Rc6 {[%emt 0:00:40]} 43. Rb4 {[%emt 0:00:06]} Rcb6 {[%emt 0:00:02]} 44. Kb1 {[%emt 0:00:16]} Ke7 {[%emt 0:00:31]} 45. Kc2 {[%emt 0:00:02]} Rc7+ {[%emt 0:00:08]} 46. Kd3 {[%emt 0:00:30]} Rd7 {[%emt 0:00:15]} 47. Kd4 {[%emt 0:00:40]} Rxd5+ {[%emt 0:00:02]} 48. Kxd5 {[%emt 0:00:01]} Rh6 {[%emt 0:00:01]} 49. Re4+ {[%emt 0:00:26]} Kf8 {[%emt 0:00:27]} 50. Rg4 {[%emt 0:00:44]} Ke7 {[%emt 0:00:09]} 51. Re4+ {[%emt 0:00:08]} Kf8 {[%emt 0:00:01]} 52. Ke5 {[%emt 0:00:13]} Ke7 {[%emt 0:00:14]} 53. Kf5+ {[%emt 0:00:06]} Kf8 {[%emt 0:00:02]} 54. Kg5 {[%emt 0:00:25]} Rg6+ {[%emt 0:00:12]} 55. Kh5 {[%emt 0:00:12]} Rc6 {[%emt 0:00:18]} 56. Re5 {[%emt 0:00:18]} Rb6 {[%emt 0:00:12]} 57. Kg4 {[%emt 0:00:15]} Kg7 {[%emt 0:00:08]} 58. h5 {[%emt 0:00:02]} b4 {[%emt 0:00:15]} 59. Re4 {[%emt 0:00:05]} bxa3 {[%emt 0:00:04]} 60. bxa3 {[%emt 0:00:00]} Ra6 {[%emt 0:00:05]} 61. Re5 {[%emt 0:00:09]} Kf6 {[%emt 0:00:15]} 62. Rb5 {[%emt 0:00:06]} Ra8 {[%emt 0:00:19]} 63. Kf4 {[%emt 0:00:14]} Ra6 {[%emt 0:00:09]} 64. Rc5 {[%emt 0:00:13]} Ra8 {[%emt 0:00:07]} 65. Rc6+ {[%emt 0:00:01]} Kg7 {[%emt 0:00:04]} 66. h6+ {[%emt 0:00:07]} Kh7 {[%emt 0:00:02]} 67. Kg5 {[%emt 0:00:11]} Rg8+ {[%emt 0:00:14]} 68. Kf4 {[%emt 0:00:11]} Rg6 {[%emt 0:00:08]} 69. Rc7 {[%emt 0:00:11]} Rf6+ {[%emt 0:00:02]} 70. Ke4 {[%emt 0:00:12]} Kxh6 {[%emt 0:00:03]} 71. Ra7 {[%emt 0:00:13]} Kg5 {[%emt 0:00:10]} 72. Ke3 {[%emt 0:00:33]} Rf4 {[%emt 0:00:09]} 73. Ra5+ {[%emt 0:00:11]} f5 {[%emt 0:00:03]} 74. Ra8 {[%emt 0:00:02]} Re4+ {[%emt 0:00:05]} 75. Kf3 {[%emt 0:00:09]} Rc4 {[%emt 0:00:09]} 76. Rg8+ {[%emt 0:00:00]} Kf6 {[%emt 0:00:12]} 77. Ra8 {[%emt 0:00:00]} Ke5 {[%emt 0:00:14]} 78. Ra5+ {[%emt 0:00:00]} Kd4 {[%emt 0:00:07]} 79. Rxf5 {[%emt 0:00:04]} Kc3 {[%emt 0:00:48]} 80. Ke2 {[%emt 0:00:06]} Rd4 {[%emt 0:00:16]} 81. Rf3+ {[%emt 0:01:02]} Kb2 {[%emt 0:00:04]} 82. Rh3 {[%emt 0:00:07]} Rd8 {[%emt 0:00:09]} 83. Rg3 {[%emt 0:00:04]} Rc8 {[%emt 0:00:09]} 84. Kd2 {[%emt 0:00:11]} Rc2+ {[%emt 0:00:08]} 85. Kd1 {[%emt 0:00:02]} Rh2 {[%emt 0:00:03]} 86. Rf3 {[%emt 0:00:06]} Rh4 {[%emt 0:00:19]} 87. Kd2 {[%emt 0:00:15]} Rd4+ {[%emt 0:00:14]} 88. Rd3 {[%emt 0:00:02]} Rc4 {[%emt 0:00:07]} 89. Rh3 {[%emt 0:00:07]} Rc8 {[%emt 0:00:12]} 90. Rd3 {[%emt 0:00:14]} Rb8 {[%emt 0:00:02]} 91. Kd1 {[%emt 0:00:17]} Rb7 {[%emt 0:00:17]} 92. Rd2+ {[%emt 0:00:17]} Kxa3 {[%emt 0:00:16]} 93. Kc1 {[%emt 0:00:02]} Rb3 {[%emt 0:00:05]} 94. Rd4 {[%emt 0:00:14]} Rh3 {[%emt 0:00:07]} 95. Kb1 {[%emt 0:00:07]} Rh1+ {[%emt 0:00:15]} 96. Kc2 {[%emt 0:00:01]} Rg1 {[%emt 0:00:05]} 97. Re4 {[%emt 0:00:04]} Rg2+ {[%emt 0:00:09]} 98. Kb1 {[%emt 0:00:02]} Rg3 {[%emt 0:00:04]} 99. Re1 {[%emt 0:00:05]} Kb3 {[%emt 0:00:08]} 100. Ka1 {[%emt 0:00:02]} 1/2-1/2

[Event "FIDE Open World Rapid 2024"]
[Site "New York"]
[Date "2024.12.27"]
[Round "7.33"]
[White "Vakhidov, Jakhongir"]
[Black "Petrosian, Tigran L."]
[Result "1-0"]
[ECO "A27"]
[WhiteElo "2546"]
[BlackElo "2551"]
[Annotator "ChessBase"]
[PlyCount "79"]
[EventDate "2024.12.14"]
[EventType "swiss"]
[EventCountry "USA"]
[SourceTitle "playchess.com"]
[Source "ChessBase"]
[SourceQuality "1"]
[TimeControl "900+10"]

1. c4 {[%emt 0:00:02]} e5 {[%emt 0:00:10]} 2. Nc3 {[%emt 0:00:01]} g6 {[%emt 0:00:08]} 3. d4 {[%emt 0:00:09]} Nc6 {[%emt 0:00:55]} 4. Nf3 {[%emt 0:00:45]} exd4 {[%emt 0:00:14]} 5. Nxd4 {[%emt 0:00:01]} Bg7 {[%emt 0:00:01]} 6. Nxc6 {[%emt 0:00:02]} bxc6 {[%emt 0:00:33]} 7. g3 {[%emt 0:00:02]} Ne7 {[%emt 0:00:56]} 8. Bg2 {[%emt 0:00:01]} O-O {[%emt 0:00:02]} 9. O-O {[%emt 0:00:03]} d6 {[%emt 0:01:03]} 10. Bg5 {[%emt 0:00:19]} Rb8 {[%emt 0:06:07]} 11. Qd2 {[%emt 0:00:43]} c5 {[%emt 0:00:05]} 12. Rad1 {[%emt 0:00:50]} f6 {[%emt 0:01:11]} 13. Be3 {[%emt 0:00:09]} Be6 {[%emt 0:00:03]} 14. b3 {[%emt 0:00:47]} Qc8 {[%emt 0:00:09]} 15. Bh6 {[%emt 0:06:16]} Bxh6 {[%emt 0:00:15]} 16. Qxh6 {[%emt 0:00:02]} Nf5 {[%emt 0:00:14]} 17. Qc1 {[%emt 0:00:20]} Qa6 {[%emt 0:00:56]} 18. e3 {[%emt 0:00:19]} Kg7 {[%emt 0:00:06]} 19. Qa1 {[%emt 0:01:05]} Rbe8 {[%emt 0:00:15]} 20. Rfe1 {[%emt 0:00:31]} Bc8 {[%emt 0:00:29]} 21. Nd5 {[%emt 0:00:22]} Rf7 {[%emt 0:00:04]} 22. g4 {[%emt 0:00:17]} Nh4 {[%emt 0:02:16]} 23. Nxf6 {[%emt 0:00:57]} Rxf6 {[%emt 0:00:01]} 24. g5 {[%emt 0:00:01]} Ref8 {[%emt 0:00:10]} 25. e4 {[%emt 0:00:39]} Qc6 {[%emt 0:00:43]} 26. Rd3 {[%emt 0:00:46]} h6 {[%emt 0:00:40]} 27. gxf6+ {[%emt 0:00:05]} Kh7 {[%emt 0:00:01]} 28. Rg3 {[%emt 0:00:24]} Be6 {[%emt 0:00:10]} 29. f4 {[%emt 0:00:28]} Qd7 {[%emt 0:00:19]} 30. Qc3 {[%emt 0:00:23]} Qd8 {[%emt 0:00:24]} 31. f5 {[%emt 0:00:16]} Bf7 {[%emt 0:00:01]} 32. fxg6+ {[%emt 0:00:48]} Bxg6 {[%emt 0:00:01]} 33. Rf1 {[%emt 0:00:38]} Qe8 {[%emt 0:00:12]} 34. Rf4 {[%emt 0:00:09]} Nxg2 {[%emt 0:00:02]} 35. Rxg2 {[%emt 0:00:03]} Qe5 {[%emt 0:00:03]} 36. Qxe5 {[%emt 0:00:30]} dxe5 {[%emt 0:00:06]} 37. Rff2 {[%emt 0:00:06]} h5 {[%emt 0:00:21]} 38. Rg5 {[%emt 0:00:06]} Bxe4 {[%emt 0:00:02]} 39. Rxh5+ {[%emt 0:00:06]} Kg6 {[%emt 0:00:01]} 40. Rxe5 {[%emt 0:00:02]} 1-0

[Event "FIDE Open World Rapid 2024"]
[Site "New York"]
[Date "2024.12.27"]
[Round "7.33"]
[White "Madaminov, Mukhiddin"]
[Black "Manon, Reja Neer"]
[Result "1-0"]
[ECO "B33"]
[WhiteElo "2501"]
[BlackElo "2429"]
[Annotator "ChessBase"]
[PlyCount "81"]
[EventDate "2024.12.14"]
[EventType "swiss"]
[EventCountry "USA"]
[SourceTitle "playchess.com"]
[Source "ChessBase"]
[SourceQuality "1"]
[TimeControl "900+10"]

1. e4 {[%emt 0:00:05]} c5 {[%emt 0:00:02]} 2. Nf3 {[%emt 0:00:04]} e6 {[%emt 0:00:04]} 3. d4 {[%emt 0:00:14]} cxd4 {[%emt 0:00:03]} 4. Nxd4 {[%emt 0:00:04]} Nc6 {[%emt 0:00:03]} 5. Nc3 {[%emt 0:00:03]} Nf6 {[%emt 0:00:04]} 6. Ndb5 {[%emt 0:00:05]} d6 {[%emt 0:00:32]} 7. Bf4 {[%emt 0:00:03]} e5 {[%emt 0:00:01]} 8. Bg5 {[%emt 0:00:02]} a6 {[%emt 0:00:00]} 9. Na3 {[%emt 0:00:03]} b5 {[%emt 0:00:02]} 10. Bxf6 {[%emt 0:00:03]} gxf6 {[%emt 0:00:02]} 11. Nd5 {[%emt 0:00:03]} f5 {[%emt 0:00:27]} 12. g3 {[%emt 0:00:03]} Bg7 {[%emt 0:01:00]} 13. Qh5 {[%emt 0:00:33]} fxe4 {[%emt 0:01:26]} 14. Bg2 {[%emt 0:00:01]} O-O {[%emt 0:01:28]} 15. Bxe4 {[%emt 0:00:32]} f5 {[%emt 0:00:07]} 16. Bg2 {[%emt 0:00:15]} e4 {[%emt 0:04:28]} 17. O-O-O {[%emt 0:02:13]} Be6 {[%emt 0:02:35]} 18. Kb1 {[%emt 0:00:23]} Nd4 {[%emt 0:01:12]} 19. Ne3 {[%emt 0:04:38]} b4 {[%emt 0:00:55]} 20. Nac4 {[%emt 0:00:02]} Rc8 {[%emt 0:00:28]} 21. Rxd4 {[%emt 0:01:18]} Bxd4 {[%emt 0:00:14]} 22. Rd1 {[%emt 0:00:03]} Bg7 {[%emt 0:00:26]} 23. Rxd6 {[%emt 0:02:12]} Qe7 {[%emt 0:02:42]} 24. Bf1 {[%emt 0:00:02]} a5 {[%emt 0:00:34]} 25. Be2 {[%emt 0:00:38]} Kh8 {[%emt 0:00:03]} 26. Ra6 {[%emt 0:01:35]} Rfd8 {[%emt 0:00:16]} 27. Rxa5 {[%emt 0:00:31]} Qf6 {[%emt 0:00:13]} 28. Ra6 {[%emt 0:00:03]} Qe7 {[%emt 0:00:11]} 29. h4 {[%emt 0:00:28]} Rd4 {[%emt 0:00:06]} 30. Qg5 {[%emt 0:01:11]} Bf6 {[%emt 0:00:13]} 31. Qh6 {[%emt 0:00:01]} Qf7 {[%emt 0:00:10]} 32. Nd6 {[%emt 0:00:35]} Bxa2+ {[%emt 0:00:03]} 33. Kc1 {[%emt 0:00:00]} Rxd6 {[%emt 0:00:05]} 34. Rxd6 {[%emt 0:00:02]} Be5 {[%emt 0:00:23]} 35. Rc6 {[%emt 0:00:24]} Rd8 {[%emt 0:00:08]} 36. Rc5 {[%emt 0:01:50]} Bd4 {[%emt 0:00:12]} 37. Ra5 {[%emt 0:00:34]} Be6 {[%emt 0:00:11]} 38. Ra6 {[%emt 0:00:11]} Bc8 {[%emt 0:00:05]} 39. Rd6 {[%emt 0:00:05]} Bxe3+ {[%emt 0:00:12]} 40. fxe3 {[%emt 0:00:03]} Rg8 {[%emt 0:00:04]} 41. Bc4 {[%emt 0:00:15]} 1-0